[Event "*** Titled Tuesday Blitz"]
[Site "Chess.com"]
[Date "2021.03.02"]
[Round "9"]
[White "Stouuf"]
[Black "Misticpikachu"]
[Result "1-0"]
[WhiteElo "2615"]
[BlackElo "2431"]
[TimeControl "180+1"]
[EndTime "11:48:18 PST"]
[Termination "Stouuf won on time"]

1. e4 {[%clk 0:03:00.9]} 1... c5 {[%clk 0:02:58.5]} 2. Nf3 {[%clk 0:02:58.5]}
2... Nc6 {[%clk 0:02:58.9]} 3. Bb5 {[%clk 0:02:58.5]} 3... e6 {[%clk 0:02:59]}
4. Bxc6 {[%clk 0:02:58.2]} 4... bxc6 {[%clk 0:02:59.9]} 5. d3 {[%clk 0:02:58.5]}
5... Ne7 {[%clk 0:03:00.3]} 6. h4 {[%clk 0:02:59.1]} 6... h5 {[%clk 0:02:49.9]}
7. Qe2 {[%clk 0:02:59.1]} 7... Ng6 {[%clk 0:02:49.7]} 8. e5 {[%clk 0:02:59.5]}
8... f6 {[%clk 0:02:45.2]} 9. Qe4 {[%clk 0:02:58.8]} 9... Kf7 {[%clk 0:02:43.7]}
10. Na3 {[%clk 0:02:54]} 10... Qc7 {[%clk 0:02:24.7]} 11. Bf4 {[%clk 0:02:47.4]}
11... d5 {[%clk 0:02:05.6]} 12. exd6 {[%clk 0:02:44.9]} 12... Bxd6 {[%clk
0:02:04.1]} 13. Bxd6 {[%clk 0:02:41.7]} 13... Qxd6 {[%clk 0:02:03.2]} 14. Nc4
{[%clk 0:02:42]} 14... Qd5 {[%clk 0:01:58.5]} 15. Ne3 {[%clk 0:02:40]} 15...
Qxe4 {[%clk 0:01:57.6]} 16. dxe4 {[%clk 0:02:40.9]} 16... Ba6 {[%clk 0:01:54]}
17. O-O-O {[%clk 0:02:31.4]} 17... Rhd8 {[%clk 0:01:52.5]} 18. Rxd8 {[%clk
0:02:15.3]} 18... Rxd8 {[%clk 0:01:49.7]} 19. Rd1 {[%clk 0:02:15]} 19... Rxd1+
{[%clk 0:01:36.2]} 20. Kxd1 {[%clk 0:02:15.9]} 20... Nf4 {[%clk 0:01:36.5]} 21.
Kd2 {[%clk 0:01:49.9]} 21... Be2 {[%clk 0:01:04.8]} 22. Ng1 {[%clk 0:01:49.4]}
22... Ba6 {[%clk 0:00:57.2]} 23. g3 {[%clk 0:01:48.8]} 23... Ng6 {[%clk
0:00:57.5]} 24. f4 {[%clk 0:01:46.3]} 24... Ne7 {[%clk 0:00:46.6]} 25. Nf3
{[%clk 0:01:38.9]} 25... Ng6 {[%clk 0:00:33.6]} 26. c4 {[%clk 0:01:27.6]} 26...
Ke7 {[%clk 0:00:32.3]} 27. Kc3 {[%clk 0:01:25.7]} 27... Bc8 {[%clk 0:00:28]} 28.
e5 {[%clk 0:01:13.8]} 28... Nf8 {[%clk 0:00:26.7]} 29. Ne1 {[%clk 0:01:07.9]}
29... Nd7 {[%clk 0:00:18.5]} 30. Nd3 {[%clk 0:01:07.3]} 30... Kf7 {[%clk
0:00:19.1]} 31. Kd2 {[%clk 0:00:49.4]} 31... g5 {[%clk 0:00:18.6]} 32. hxg5
{[%clk 0:00:36.6]} 32... fxg5 {[%clk 0:00:19.5]} 33. fxg5 {[%clk 0:00:37.1]}
33... Kg6 {[%clk 0:00:20]} 34. Nf4+ {[%clk 0:00:37]} 34... Kxg5 {[%clk
0:00:17.5]} 35. Nxe6+ {[%clk 0:00:37.2]} 35... Kh6 {[%clk 0:00:14.2]} 36. Nf5+
{[%clk 0:00:24.5]} 36... Kh7 {[%clk 0:00:09.5]} 37. Nd6 {[%clk 0:00:20.3]} 37...
Ba6 {[%clk 0:00:03.8]} 38. b3 {[%clk 0:00:17.2]} 38... Nxe5 {[%clk 0:00:03.8]}
39. Nc7 {[%clk 0:00:17.2]} 39... Nf3+ {[%clk 0:00:01.5]} 40. Ke3 {[%clk
0:00:16.5]} 40... Nd4 {[%clk 0:00:01.6]} 41. Nxa6 {[%clk 0:00:14.9]} 41... Kg6
{[%clk 0:00:02.5]} 42. Nxc5 {[%clk 0:00:15]} 42... Nf5+ {[%clk 0:00:01.8]} 43.
Nxf5 {[%clk 0:00:13.5]} 43... Kxf5 {[%clk 0:00:02.7]} 44. Ne4 {[%clk 0:00:11.8]}
44... Ke5 {[%clk 0:00:02.2]} 45. Nf2 {[%clk 0:00:10.8]} 45... a5 {[%clk
0:00:03.1]} 46. Nh3 {[%clk 0:00:11.1]} 46... Kf5 {[%clk 0:00:04]} 47. Kf3 {[%clk
0:00:10.9]} 47... Ke5 {[%clk 0:00:01.7]} 48. Nf4 {[%clk 0:00:11.1]} 48... Kd4
{[%clk 0:00:02.6]} 49. Nxh5 {[%clk 0:00:11.5]} 49... Kc3 {[%clk 0:00:03.5]} 50.
g4 {[%clk 0:00:12.2]} 50... Kb2 {[%clk 0:00:04.2]} 51. g5 {[%clk 0:00:11.9]}
51... Kxa2 {[%clk 0:00:04.9]} 52. g6 {[%clk 0:00:12.6]} 52... Kxb3 {[%clk
0:00:05.5]} 53. g7 {[%clk 0:00:13.4]} 53... a4 {[%clk 0:00:05.2]} 54. g8=Q
{[%clk 0:00:14]} 54... a3 {[%clk 0:00:06.1]} 55. c5+ {[%clk 0:00:14.5]} 55...
Kb2 {[%clk 0:00:06.1]} 56. Qb8+ {[%clk 0:00:09.5]} 56... Ka1 {[%clk 0:00:05.4]}
57. Qa8 {[%clk 0:00:08.6]} 57... a2 {[%clk 0:00:02.9]} 58. Qxc6 {[%clk
0:00:09.5]} 58... Kb2 {[%clk 0:00:02.4]} 59. Qa4 {[%clk 0:00:09.6]} 1-0

[Event "*** Titled Tuesday Blitz"]
[Site "Chess.com"]
[Date "2021.03.02"]
[Round "9"]
[White "GigaQuparadze"]
[Black "German_Bazeev"]
[Result "0-1"]
[WhiteElo "2944"]
[BlackElo "2754"]
[TimeControl "180+1"]
[EndTime "11:48:22 PST"]
[Termination "German_Bazeev won by resignation"]

1. e4 {[%clk 0:03:00.9]} 1... c6 {[%clk 0:02:58.9]} 2. d4 {[%clk 0:03:00.6]}
2... d5 {[%clk 0:02:59.5]} 3. Nc3 {[%clk 0:03:01.5]} 3... dxe4 {[%clk
0:02:59.8]} 4. Nxe4 {[%clk 0:03:02.4]} 4... Nf6 {[%clk 0:03:00.7]} 5. Nxf6+
{[%clk 0:03:02.7]} 5... exf6 {[%clk 0:03:01.6]} 6. c3 {[%clk 0:03:03.3]} 6...
Bd6 {[%clk 0:03:02.5]} 7. Bd3 {[%clk 0:03:03.6]} 7... O-O {[%clk 0:03:03.4]} 8.
Qc2 {[%clk 0:03:04.1]} 8... Re8+ {[%clk 0:03:04.3]} 9. Ne2 {[%clk 0:03:04.5]}
9... h5 {[%clk 0:03:05.2]} 10. h3 {[%clk 0:03:05]} 10... h4 {[%clk 0:03:04.1]}
11. O-O {[%clk 0:03:04.9]} 11... Bc7 {[%clk 0:03:00.9]} 12. Bf4 {[%clk
0:03:01.3]} 12... Nd7 {[%clk 0:02:53.3]} 13. Rae1 {[%clk 0:02:58.5]} 13... Nf8
{[%clk 0:02:52.3]} 14. Bxc7 {[%clk 0:02:55.3]} 14... Qxc7 {[%clk 0:02:53.2]} 15.
Nc1 {[%clk 0:02:55.5]} 15... Bd7 {[%clk 0:02:51]} 16. Nb3 {[%clk 0:02:55.4]}
16... b6 {[%clk 0:02:47.2]} 17. Bf5 {[%clk 0:02:52.3]} 17... g6 {[%clk
0:02:45.6]} 18. Bxd7 {[%clk 0:02:50.6]} 18... Qxd7 {[%clk 0:02:38.6]} 19. Qd2
{[%clk 0:02:50.6]} 19... Qf5 {[%clk 0:02:37.3]} 20. Nc1 {[%clk 0:02:36.5]} 20...
Ne6 {[%clk 0:02:37]} 21. Nd3 {[%clk 0:02:34.7]} 21... Ng5 {[%clk 0:02:36.5]} 22.
Re3 {[%clk 0:02:32.1]} 22... Re6 {[%clk 0:02:22.2]} 23. Rfe1 {[%clk 0:02:27.7]}
23... Rae8 {[%clk 0:02:21.6]} 24. Rxe6 {[%clk 0:02:27.4]} 24... Rxe6 {[%clk
0:02:21.9]} 25. Rxe6 {[%clk 0:02:27.5]} 25... Qxe6 {[%clk 0:02:22.4]} 26. b3
{[%clk 0:02:21]} 26... Qxh3 {[%clk 0:01:59.3]} 27. Qxg5 {[%clk 0:02:07.2]} 27...
Qxd3 {[%clk 0:01:58.3]} 28. Qxh4 {[%clk 0:02:07.2]} 28... Kg7 {[%clk 0:01:54.7]}
29. c4 {[%clk 0:01:55.4]} 29... Qb1+ {[%clk 0:01:49.9]} 30. Kh2 {[%clk
0:01:51.9]} 30... Qxa2 {[%clk 0:01:50.6]} 31. Qg3 {[%clk 0:01:46.4]} 31... Qd2
{[%clk 0:01:47.4]} 32. Qh4 {[%clk 0:01:04.6]} 32... a5 {[%clk 0:01:38]} 33. Qe4
{[%clk 0:00:50.2]} 33... Qxf2 {[%clk 0:01:26.7]} 34. d5 {[%clk 0:00:50.3]} 34...
cxd5 {[%clk 0:01:25.7]} 35. cxd5 {[%clk 0:00:51.2]} 35... Qc5 {[%clk 0:01:22.4]}
36. Qd3 {[%clk 0:00:51.1]} 36... Qd6+ {[%clk 0:01:18.6]} 37. Kh1 {[%clk
0:00:51.3]} 37... Kf8 {[%clk 0:01:18.4]} 38. Qe4 {[%clk 0:00:49.1]} 38... b5
{[%clk 0:01:04.5]} 39. Qd3 {[%clk 0:00:49.1]} 39... a4 {[%clk 0:00:43.5]} 40.
Qxb5 {[%clk 0:00:48.8]} 40... a3 {[%clk 0:00:43]} 41. Qa5 {[%clk 0:00:47.6]}
41... f5 {[%clk 0:00:36.2]} 42. b4 {[%clk 0:00:46.9]} 42... a2 {[%clk
0:00:30.2]} 43. Qxa2 {[%clk 0:00:44.7]} 43... Qxb4 {[%clk 0:00:30.2]} 44. Qa8+
{[%clk 0:00:43.8]} 44... Ke7 {[%clk 0:00:29.5]} 45. Qa7+ {[%clk 0:00:42.7]}
45... Kf6 {[%clk 0:00:29.9]} 46. Qd7 {[%clk 0:00:39.5]} 46... Qe1+ {[%clk
0:00:28.5]} 47. Kh2 {[%clk 0:00:39.5]} 47... Qh4+ {[%clk 0:00:29.2]} 48. Kg1
{[%clk 0:00:39.8]} 48... Qe1+ {[%clk 0:00:30.1]} 49. Kh2 {[%clk 0:00:40.1]}
49... Qe5+ {[%clk 0:00:31]} 50. Kg1 {[%clk 0:00:39.9]} 50... Qe7 {[%clk
0:00:31.7]} 51. Qb5 {[%clk 0:00:31.6]} 51... Ke5 {[%clk 0:00:28.5]} 52. Qe2+
{[%clk 0:00:29.5]} 52... Kd6 {[%clk 0:00:28.6]} 53. Qd2 {[%clk 0:00:26.1]} 53...
Qe4 {[%clk 0:00:21.8]} 54. Qa5 {[%clk 0:00:19.8]} 54... Qxd5 {[%clk 0:00:21.9]}
55. Qb6+ {[%clk 0:00:19.5]} 55... Ke5 {[%clk 0:00:21.6]} 56. Qc7+ {[%clk
0:00:18.3]} 56... Kf6 {[%clk 0:00:22.2]} 57. Qb6+ {[%clk 0:00:18.5]} 57... Qe6
{[%clk 0:00:22.9]} 58. Qd4+ {[%clk 0:00:18.4]} 58... Qe5 {[%clk 0:00:23.6]} 59.
Qd8+ {[%clk 0:00:18.6]} 59... Kg7 {[%clk 0:00:23.9]} 60. Qd7 {[%clk 0:00:18.8]}
60... f4 {[%clk 0:00:22.8]} 61. Kh2 {[%clk 0:00:17.7]} 61... f3+ {[%clk
0:00:21.4]} 62. Kh3 {[%clk 0:00:14]} 62... f2 {[%clk 0:00:13]} 63. Qd1 {[%clk
0:00:13.6]} 63... Qf5+ {[%clk 0:00:13.3]} 64. g4 {[%clk 0:00:12.9]} 64... f1=Q+
{[%clk 0:00:13.2]} 0-1

[Event "*** Titled Tuesday Blitz"]
[Site "Chess.com"]
[Date "2021.03.02"]
[Round "9"]
[White "korkmaz16"]
[Black "PotapovaM"]
[Result "1-0"]
[WhiteElo "2417"]
[BlackElo "2515"]
[TimeControl "180+1"]
[EndTime "11:48:22 PST"]
[Termination "korkmaz16 won by checkmate"]

1. e4 {[%clk 0:03:00.9]} 1... c5 {[%clk 0:02:59.8]} 2. Nf3 {[%clk 0:03:00]} 2...
d6 {[%clk 0:03:00.1]} 3. c3 {[%clk 0:02:59.3]} 3... Nf6 {[%clk 0:02:59.8]} 4.
Be2 {[%clk 0:02:59.2]} 4... Bg4 {[%clk 0:02:56.4]} 5. O-O {[%clk 0:02:53.9]}
5... Nc6 {[%clk 0:02:55.8]} 6. d4 {[%clk 0:02:51.9]} 6... cxd4 {[%clk
0:02:55.7]} 7. cxd4 {[%clk 0:02:50.9]} 7... e6 {[%clk 0:02:56]} 8. d5 {[%clk
0:02:47.9]} 8... exd5 {[%clk 0:02:32.3]} 9. exd5 {[%clk 0:02:46]} 9... Bxf3
{[%clk 0:02:29.7]} 10. Bxf3 {[%clk 0:02:43.8]} 10... Ne5 {[%clk 0:02:29.5]} 11.
Be2 {[%clk 0:02:42.1]} 11... Be7 {[%clk 0:02:19.7]} 12. Nc3 {[%clk 0:02:41.5]}
12... O-O {[%clk 0:02:17]} 13. Be3 {[%clk 0:02:39.4]} 13... Re8 {[%clk 0:02:15]}
14. Qb3 {[%clk 0:02:32.3]} 14... b6 {[%clk 0:01:41.4]} 15. Bb5 {[%clk
0:02:20.6]} 15... Rf8 {[%clk 0:01:40.9]} 16. f4 {[%clk 0:02:11.5]} 16... Ned7
{[%clk 0:01:39.9]} 17. Bc6 {[%clk 0:02:08.9]} 17... Rc8 {[%clk 0:01:39.5]} 18.
Bd4 {[%clk 0:01:54.5]} 18... Nb8 {[%clk 0:01:38.9]} 19. Bb5 {[%clk 0:01:47.6]}
19... Nbd7 {[%clk 0:01:38.2]} 20. Rae1 {[%clk 0:01:42.1]} 20... Nc5 {[%clk
0:01:36.6]} 21. Qd1 {[%clk 0:01:40.3]} 21... a6 {[%clk 0:01:31]} 22. Bc6 {[%clk
0:01:36.4]} 22... Ncd7 {[%clk 0:01:21.2]} 23. Qe2 {[%clk 0:01:32.9]} 23... Re8
{[%clk 0:01:20]} 24. Qxa6 {[%clk 0:01:31]} 24... Bf8 {[%clk 0:00:41.2]} 25. Rxe8
{[%clk 0:01:16.1]} 25... Nxe8 {[%clk 0:00:42.1]} 26. Qd3 {[%clk 0:01:12.6]}
26... Nc5 {[%clk 0:00:39.8]} 27. Qf3 {[%clk 0:01:11.4]} 27... Be7 {[%clk
0:00:36]} 28. b4 {[%clk 0:01:09.7]} 28... Nd7 {[%clk 0:00:34.5]} 29. Ne4 {[%clk
0:01:05.1]} 29... Nef6 {[%clk 0:00:32.4]} 30. Nc3 {[%clk 0:00:57.6]} 30... Nb8
{[%clk 0:00:29.7]} 31. b5 {[%clk 0:00:55]} 31... Nbd7 {[%clk 0:00:29.3]} 32. g4
{[%clk 0:00:52.7]} 32... Nc5 {[%clk 0:00:28.8]} 33. g5 {[%clk 0:00:52.4]} 33...
Nfd7 {[%clk 0:00:28.6]} 34. h4 {[%clk 0:00:47.8]} 34... f6 {[%clk 0:00:25.2]}
35. Ne4 {[%clk 0:00:43.2]} 35... Ra8 {[%clk 0:00:11.1]} 36. Bxa8 {[%clk
0:00:41.6]} 36... Qxa8 {[%clk 0:00:11.7]} 37. gxf6 {[%clk 0:00:41.4]} 37... gxf6
{[%clk 0:00:05.7]} 38. Nxc5 {[%clk 0:00:38.6]} 38... bxc5 {[%clk 0:00:04.4]} 39.
Qg4+ {[%clk 0:00:37.9]} 39... Kf8 {[%clk 0:00:02.2]} 40. Qxd7 {[%clk 0:00:37.3]}
40... cxd4 {[%clk 0:00:02.9]} 41. Re1 {[%clk 0:00:37.4]} 41... Qd8 {[%clk
0:00:02.8]} 42. Qxd8+ {[%clk 0:00:24.3]} 42... Bxd8 {[%clk 0:00:03.7]} 43. Kf2
{[%clk 0:00:24]} 43... Bb6 {[%clk 0:00:03.8]} 44. f5 {[%clk 0:00:21.8]} 44... h5
{[%clk 0:00:03.2]} 45. Kf3 {[%clk 0:00:21.7]} 45... Kf7 {[%clk 0:00:03.3]} 46.
Ke4 {[%clk 0:00:22]} 46... Ke7 {[%clk 0:00:02.4]} 47. Rd1 {[%clk 0:00:22]} 47...
Kd7 {[%clk 0:00:02.9]} 48. Rxd4 {[%clk 0:00:21.1]} 48... Bc5 {[%clk 0:00:03.2]}
49. Ra4 {[%clk 0:00:20.3]} 49... Bb6 {[%clk 0:00:03.2]} 50. Ra6 {[%clk
0:00:20.7]} 50... Bc5 {[%clk 0:00:03.8]} 51. a4 {[%clk 0:00:21]} 51... Kc8
{[%clk 0:00:04.2]} 52. a5 {[%clk 0:00:21.3]} 52... Kb7 {[%clk 0:00:04.8]} 53.
Rc6 {[%clk 0:00:21.8]} 53... Kb8 {[%clk 0:00:03.6]} 54. a6 {[%clk 0:00:22.7]}
54... Ka7 {[%clk 0:00:01.1]} 55. Rc7+ {[%clk 0:00:22.6]} 55... Kb6 {[%clk
0:00:01.5]} 56. Rb7+ {[%clk 0:00:23.5]} 56... Ka5 {[%clk 0:00:01.7]} 57. a7
{[%clk 0:00:24.4]} 57... Bxa7 {[%clk 0:00:01.8]} 58. Rxa7+ {[%clk 0:00:25.3]}
58... Kb6 {[%clk 0:00:02.6]} 59. Rd7 {[%clk 0:00:25.1]} 59... Kc5 {[%clk
0:00:03.5]} 60. b6 {[%clk 0:00:24.9]} 60... Kc4 {[%clk 0:00:04.4]} 61. Rxd6
{[%clk 0:00:25.3]} 61... Kc5 {[%clk 0:00:05.3]} 62. Rxf6 {[%clk 0:00:26.2]}
62... Kc4 {[%clk 0:00:06.2]} 63. b7 {[%clk 0:00:26.8]} 63... Kc5 {[%clk
0:00:07.1]} 64. b8=Q {[%clk 0:00:26.7]} 64... Kc4 {[%clk 0:00:08]} 65. Qb2
{[%clk 0:00:26.4]} 65... Kc5 {[%clk 0:00:08.9]} 66. Qd4+ {[%clk 0:00:26.9]}
66... Kb5 {[%clk 0:00:08.4]} 67. Rb6+ {[%clk 0:00:27.8]} 67... Ka5 {[%clk
0:00:09.3]} 68. Qb4# {[%clk 0:00:28.4]} 1-0

[Event "*** Titled Tuesday Blitz"]
[Site "Chess.com"]
[Date "2021.03.02"]
[Round "9"]
[White "dhaessel"]
[Black "LubovMarkelova"]
[Result "0-1"]
[WhiteElo "1960"]
[BlackElo "2208"]
[TimeControl "180+1"]
[EndTime "11:48:24 PST"]
[Termination "LubovMarkelova won on time"]

1. d4 {[%clk 0:03:00.9]} 1... d5 {[%clk 0:02:59.9]} 2. c4 {[%clk 0:03:00.8]}
2... c6 {[%clk 0:02:59.4]} 3. Nc3 {[%clk 0:02:59.1]} 3... Nf6 {[%clk 0:02:59.4]}
4. e3 {[%clk 0:02:58.2]} 4... Bf5 {[%clk 0:02:59.6]} 5. cxd5 {[%clk 0:02:52]}
5... Nxd5 {[%clk 0:02:59.6]} 6. Qb3 {[%clk 0:02:52.7]} 6... Qb6 {[%clk
0:02:55.1]} 7. Nxd5 {[%clk 0:02:34.4]} 7... Qxb3 {[%clk 0:02:53.9]} 8. axb3
{[%clk 0:02:31.5]} 8... cxd5 {[%clk 0:02:53.7]} 9. Nf3 {[%clk 0:02:31.2]} 9...
Nc6 {[%clk 0:02:44.2]} 10. Be2 {[%clk 0:02:20.6]} 10... e6 {[%clk 0:02:43.2]}
11. O-O {[%clk 0:02:19.8]} 11... Bd6 {[%clk 0:02:43.2]} 12. Bd2 {[%clk
0:02:16.9]} 12... O-O {[%clk 0:02:43]} 13. Rfc1 {[%clk 0:02:11.1]} 13... Rfc8
{[%clk 0:02:42.9]} 14. Nh4 {[%clk 0:02:06.5]} 14... Bg6 {[%clk 0:02:39]} 15.
Nxg6 {[%clk 0:02:06]} 15... hxg6 {[%clk 0:02:39.9]} 16. Ra4 {[%clk 0:01:55.9]}
16... a6 {[%clk 0:02:37.7]} 17. h4 {[%clk 0:01:45.8]} 17... Kf8 {[%clk
0:02:37.7]} 18. Kf1 {[%clk 0:01:45.6]} 18... Ke7 {[%clk 0:02:37.9]} 19. Ke1
{[%clk 0:01:44.2]} 19... Kd7 {[%clk 0:02:28.1]} 20. Bd3 {[%clk 0:01:29]} 20...
Rc7 {[%clk 0:02:26.3]} 21. Ke2 {[%clk 0:01:25]} 21... Rac8 {[%clk 0:02:26.3]}
22. Raa1 {[%clk 0:01:22]} 22... Be7 {[%clk 0:02:04.1]} 23. g3 {[%clk 0:01:16.8]}
23... Bd6 {[%clk 0:02:00.9]} 24. Rh1 {[%clk 0:01:03.4]} 24... Bb4 {[%clk
0:01:55.9]} 25. Bc1 {[%clk 0:01:01.4]} 25... Na5 {[%clk 0:01:54.2]} 26. Ra4
{[%clk 0:00:56.7]} 26... Nxb3 {[%clk 0:01:42.6]} 27. Rxb4 {[%clk 0:00:53.2]}
27... Nxc1+ {[%clk 0:01:42.7]} 28. Kd2 {[%clk 0:00:52]} 28... Nxd3 {[%clk
0:01:40.4]} 29. Kxd3 {[%clk 0:00:52.9]} 29... a5 {[%clk 0:01:35.4]} 30. Rb5
{[%clk 0:00:51]} 30... a4 {[%clk 0:01:22.8]} 31. Ra1 {[%clk 0:00:45.1]} 31...
Kc6 {[%clk 0:01:09.6]} 32. Rc5+ {[%clk 0:00:41.7]} 32... Kd6 {[%clk 0:01:09.6]}
33. Rxc7 {[%clk 0:00:40]} 33... Rxc7 {[%clk 0:01:10.5]} 34. Rxa4 {[%clk
0:00:40]} 34... Rc1 {[%clk 0:01:10]} 35. Ra7 {[%clk 0:00:36.3]} 35... Kc7 {[%clk
0:01:08.7]} 36. Ra8 {[%clk 0:00:35.9]} 36... Rf1 {[%clk 0:01:02.7]} 37. Ke2
{[%clk 0:00:34.5]} 37... Rb1 {[%clk 0:01:02.6]} 38. Rf8 {[%clk 0:00:32.5]} 38...
Rxb2+ {[%clk 0:01:02.7]} 39. Ke1 {[%clk 0:00:33]} 39... Kd6 {[%clk 0:01:00.7]}
40. Rxf7 {[%clk 0:00:32.7]} 40... b5 {[%clk 0:01:00.8]} 41. Rxg7 {[%clk
0:00:32.6]} 41... b4 {[%clk 0:01:00]} 42. Rb7 {[%clk 0:00:26.1]} 42... b3 {[%clk
0:00:59.9]} 43. g4 {[%clk 0:00:20.7]} 43... Rb1+ {[%clk 0:00:58]} 44. Ke2 {[%clk
0:00:20.7]} 44... b2 {[%clk 0:00:57.7]} 45. h5 {[%clk 0:00:18.8]} 45... gxh5
{[%clk 0:00:53.1]} 46. gxh5 {[%clk 0:00:19.3]} 46... Kc6 {[%clk 0:00:51.9]} 47.
Rb8 {[%clk 0:00:18.8]} 47... Kc7 {[%clk 0:00:51.9]} 48. Rb3 {[%clk 0:00:18.5]}
48... Rh1 {[%clk 0:00:50.5]} 49. Rxb2 {[%clk 0:00:17.9]} 49... Rxh5 {[%clk
0:00:51.4]} 50. Kf3 {[%clk 0:00:17.3]} 50... Kd6 {[%clk 0:00:50.9]} 51. Kg4
{[%clk 0:00:16.3]} 51... Rf5 {[%clk 0:00:50.8]} 52. f4 {[%clk 0:00:15.4]} 52...
Ke7 {[%clk 0:00:49.8]} 53. Rb7+ {[%clk 0:00:14.6]} 53... Kf6 {[%clk 0:00:50]}
54. Rb8 {[%clk 0:00:14.3]} 54... Ke7 {[%clk 0:00:48.6]} 55. Rg8 {[%clk 0:00:14]}
55... Rf7 {[%clk 0:00:46.7]} 56. Kg5 {[%clk 0:00:12.6]} 56... Rh7 {[%clk
0:00:46.5]} 57. Kg4 {[%clk 0:00:10.2]} 57... Rh1 {[%clk 0:00:45.4]} 58. Rg5
{[%clk 0:00:08]} 58... Re1 {[%clk 0:00:43.1]} 59. Re5 {[%clk 0:00:07.5]} 59...
Rg1+ {[%clk 0:00:39.5]} 60. Kf3 {[%clk 0:00:06.3]} 60... Kf6 {[%clk 0:00:39]}
61. Kf2 {[%clk 0:00:04.5]} 61... Rh1 {[%clk 0:00:34.8]} 62. Kg2 {[%clk
0:00:04.1]} 62... Ra1 {[%clk 0:00:34.2]} 63. Rg5 {[%clk 0:00:03.5]} 63... Re1
{[%clk 0:00:33.3]} 64. Kf3 {[%clk 0:00:03.7]} 64... Rf1+ {[%clk 0:00:33.1]} 65.
Ke2 {[%clk 0:00:03.5]} 65... Ra1 {[%clk 0:00:32.7]} 66. Rg8 {[%clk 0:00:04.4]}
66... Ra2+ {[%clk 0:00:32.4]} 67. Kf3 {[%clk 0:00:04.4]} 67... Ra3 {[%clk
0:00:31.7]} 68. Rb8 {[%clk 0:00:03.7]} 68... Rc3 {[%clk 0:00:29.8]} 69. Rf8+
{[%clk 0:00:03.4]} 69... Ke7 {[%clk 0:00:29.7]} 70. Rg8 {[%clk 0:00:03.9]} 70...
Kf7 {[%clk 0:00:29.8]} 71. Rg5 {[%clk 0:00:03.9]} 71... Kf6 {[%clk 0:00:29.6]}
72. Re5 {[%clk 0:00:03.7]} 72... Rc1 {[%clk 0:00:29.8]} 0-1

[Event "*** Titled Tuesday Blitz"]
[Site "Chess.com"]
[Date "2021.03.02"]
[Round "9"]
[White "SlavenPastar"]
[Black "PavelChernomordik"]
[Result "1-0"]
[WhiteElo "2567"]
[BlackElo "2370"]
[TimeControl "180+1"]
[EndTime "11:48:25 PST"]
[Termination "SlavenPastar won by resignation"]

1. b3 {[%clk 0:02:54.2]} 1... g6 {[%clk 0:02:58.8]} 2. Bb2 {[%clk 0:02:55.1]}
2... Nf6 {[%clk 0:02:58.1]} 3. e3 {[%clk 0:02:51.4]} 3... Bg7 {[%clk 0:02:57.1]}
4. f4 {[%clk 0:02:51.8]} 4... O-O {[%clk 0:02:56.2]} 5. Nf3 {[%clk 0:02:52.5]}
5... d6 {[%clk 0:02:55.5]} 6. Be2 {[%clk 0:02:53]} 6... e5 {[%clk 0:02:51.2]} 7.
fxe5 {[%clk 0:02:50.9]} 7... Ng4 {[%clk 0:02:49.9]} 8. O-O {[%clk 0:02:40.6]}
8... Nxe5 {[%clk 0:02:48.5]} 9. Nxe5 {[%clk 0:02:38.4]} 9... dxe5 {[%clk
0:02:47.6]} 10. e4 {[%clk 0:02:33.9]} 10... Nc6 {[%clk 0:02:42]} 11. Bc4 {[%clk
0:02:31.9]} 11... Qe7 {[%clk 0:02:35.1]} 12. Nc3 {[%clk 0:02:30.8]} 12... Nd4
{[%clk 0:02:30]} 13. Nd5 {[%clk 0:02:27.5]} 13... Qd8 {[%clk 0:02:25.3]} 14. c3
{[%clk 0:02:24.4]} 14... Ne6 {[%clk 0:02:24.5]} 15. Ba3 {[%clk 0:02:05.4]} 15...
Re8 {[%clk 0:02:20.9]} 16. Qf3 {[%clk 0:02:00.4]} 16... Ng5 {[%clk 0:02:12.7]}
17. Qe3 {[%clk 0:01:49.8]} 17... h6 {[%clk 0:01:56.6]} 18. Rf2 {[%clk
0:01:35.7]} 18... c6 {[%clk 0:01:53.9]} 19. h4 {[%clk 0:01:12.6]} 19... cxd5
{[%clk 0:01:52.2]} 20. exd5 {[%clk 0:01:11.8]} 20... Nh3+ {[%clk 0:01:46.6]} 21.
gxh3 {[%clk 0:01:06.3]} 21... Qxh4 {[%clk 0:01:45.8]} 22. d6 {[%clk 0:00:51.9]}
22... Be6 {[%clk 0:01:41]} 23. Raf1 {[%clk 0:00:48.4]} 23... Bxc4 {[%clk
0:01:31.9]} 24. bxc4 {[%clk 0:00:46.6]} 24... f5 {[%clk 0:01:31.2]} 25. c5
{[%clk 0:00:24.3]} 25... e4 {[%clk 0:01:20.1]} 26. Rg2 {[%clk 0:00:20.7]} 26...
Kh7 {[%clk 0:01:18.8]} 27. Qg3 {[%clk 0:00:14.8]} 27... Qf6 {[%clk 0:01:08.5]}
28. h4 {[%clk 0:00:14.3]} 28... h5 {[%clk 0:01:06.9]} 29. Qg5 {[%clk 0:00:13.8]}
29... Qxg5 {[%clk 0:01:03.4]} 30. hxg5 {[%clk 0:00:14.1]} 30... e3 {[%clk
0:01:03]} 31. dxe3 {[%clk 0:00:13.9]} 31... Rxe3 {[%clk 0:01:01.9]} 32. Rd1
{[%clk 0:00:12.9]} 32... Rd8 {[%clk 0:00:56.8]} 33. Bb4 {[%clk 0:00:11.8]} 33...
Rd7 {[%clk 0:00:45.2]} 34. Kf2 {[%clk 0:00:09.9]} 34... f4 {[%clk 0:00:42.7]}
35. Re1 {[%clk 0:00:07.9]} 35... Bxc3 {[%clk 0:00:34.3]} 36. Bxc3 {[%clk
0:00:07.4]} 36... Rxc3 {[%clk 0:00:33.6]} 37. Rgg1 {[%clk 0:00:05.9]} 37... Kg7
{[%clk 0:00:24.1]} 38. Re4 {[%clk 0:00:04.5]} 38... Rxc5 {[%clk 0:00:18.7]} 39.
Rd1 {[%clk 0:00:05]} 39... Rf5 {[%clk 0:00:16.3]} 40. Re6 {[%clk 0:00:04.4]}
40... f3 {[%clk 0:00:14.1]} 41. Rc1 {[%clk 0:00:04.6]} 41... Kf7 {[%clk
0:00:13.6]} 42. Re3 {[%clk 0:00:03]} 42... Rxd6 {[%clk 0:00:13.2]} 43. Rc7+
{[%clk 0:00:03.5]} 43... Kf8 {[%clk 0:00:12.8]} 44. Ree7 {[%clk 0:00:03.9]}
44... Rd2+ {[%clk 0:00:11.4]} 45. Kg3 {[%clk 0:00:04.1]} 45... f2 {[%clk
0:00:11.2]} 46. Rh7 {[%clk 0:00:03.1]} 46... Ke8 {[%clk 0:00:10.3]} 47. Rh8+
{[%clk 0:00:02.6]} 47... Rf8 {[%clk 0:00:09.9]} 48. Rc8+ {[%clk 0:00:03.3]}
48... Rd8 {[%clk 0:00:09]} 49. Rxd8+ {[%clk 0:00:03.6]} 49... Kxd8 {[%clk
0:00:08.7]} 50. Rxf8+ {[%clk 0:00:04.4]} 50... Ke7 {[%clk 0:00:08.1]} 51. Rxf2
{[%clk 0:00:05.3]} 51... Kd6 {[%clk 0:00:06.8]} 52. Rf6+ {[%clk 0:00:06.2]}
52... Kc5 {[%clk 0:00:07.2]} 53. Rxg6 {[%clk 0:00:07.1]} 53... Kb4 {[%clk
0:00:06.9]} 54. Rg7 {[%clk 0:00:08]} 54... b5 {[%clk 0:00:05.9]} 55. Rxa7 {[%clk
0:00:08]} 55... Kc4 {[%clk 0:00:03.7]} 56. g6 {[%clk 0:00:08.3]} 1-0